bitfinex-derivatives/quotes_BTCF0:USTF0_20250710
["timestamp","ask_amount","ask_price","bid_price","bid_amount"]
[1752144578674,0.65854734,110980.0,110970.0,0.55405808]
[1752144579675,0.83871504,110980.0,110970.0,0.55405808]
[1752144581078,0.80414549,110980.0,110970.0,0.55405808]
[1752144581277,0.83868717,110980.0,110970.0,0.55405808]
[1752144582182,0.65851947,110980.0,110970.0,0.55405808]
[1752144583472,0.65851947,110980.0,110970.0,0.51295808]
[1752144583679,0.65851947,110980.0,110970.0,0.55405808]
[1752144584072,0.4171965,110980.0,110970.0,0.55405808]
[1752144584272,0.65851947,110980.0,110970.0,0.55405808]
[1752144585371,0.29771947,110980.0,110970.0,0.55405808]
[1752144585576,0.65851947,110980.0,110970.0,0.55412159]
[1752144587483,0.65851947,110980.0,110970.0,0.51302159]
[1752144587678,0.65851947,110980.0,110970.0,0.55412159]
[1752144591980,0.65851947,110980.0,110970.0,0.55411988]
[1752144594785,0.65851947,110980.0,110970.0,0.54003717]
[1752144594988,0.65851947,110980.0,110970.0,0.55411987]
[1752144600678,0.4171965,110980.0,110970.0,0.84871987]
[1752144600883,0.02185482,110980.0,110970.0,1.09004284]
[1752144601191,0.02185482,110980.0,110970.0,1.45084284]
[1752144602990,0.02185482,110980.0,110970.0,1.45084145]
[1752144603187,0.02185482,110980.0,110970.0,1.55897329]
[1752144603491,0.02185482,110980.0,110970.0,1.69809729]
[1752144603692,0.02185482,110980.0,110970.0,1.72162729]
[1752144605594,0.003,110980.0,110970.0,1.72162729]
[1752144605792,0.3608,111000.0,110990.0,0.1801515]
[1752144605994,0.3608,111000.0,110990.0,1.72481849]
[1752144606194,0.3608,111000.0,110990.0,1.78541849]
[1752144606390,0.63432297,111010.0,111000.0,0.1801353]
[1752144606591,0.66857719,111010.0,111000.0,0.51264958]
[1752144606796,0.66857719,111010.0,111000.0,0.53617958]
[1752144607294,0.66853306,111010.0,111000.0,0.53617958]
[1752144608094,0.66853306,111010.0,111000.0,0.77750255]
[1752144608398,0.66853306,111010.0,111000.0,0.78416283]
[1752144608894,0.66853306,111010.0,111000.0,0.54283986]
[1752144609101,0.84865216,111010.0,111000.0,0.54283986]
[1752144609504,0.66853306,111010.0,111000.0,0.54283986]
[1752144609803,0.85365216,111010.0,111000.0,0.54283986]
[1752144610198,0.43221009,111010.0,111000.0,0.54283986]
[1752144610401,0.40001009,111010.0,111000.0,0.78416283]
[1752144610696,0.03921009,111010.0,111000.0,0.78416283]
[1752144610890,0.03921009,111010.0,111000.0,1.14496283]
[1752144611295,0.04121009,111010.0,111000.0,1.14496283]
[1752144611695,0.007,111010.0,111000.0,1.14496283]
[1752144612504,0.004,111010.0,111000.0,1.14496283]
[1752144613502,0.004,111010.0,111000.0,1.10492283]
[1752144613703,0.004,111010.0,111000.0,1.12845283]
[1752144615603,0.004,111010.0,111000.0,1.42305283]
[1752144615802,0.004,111010.0,111000.0,1.6643758]
[1752144616002,0.004,111010.0,111000.0,1.8445518]
[1752144616904,0.002,111010.0,111000.0,1.60422883]
[1752144617097,0.63412297,111030.0,111020.0,0.1801028]
[1752144617294,0.3928,111030.0,111020.0,1.68349708]
[1752144617494,0.63412297,111030.0,111020.0,1.98095005]
[1752144617903,0.60212297,111030.0,111020.0,1.98095005]
[1752144618101,0.60212297,111030.0,111020.0,2.01395005]
[1752144618312,0.60712297,111030.0,111020.0,2.01395005]
[1752144619400,0.3658,111030.0,111020.0,2.01395005]
[1752144619601,0.3658,111030.0,111020.0,1.97391005]
[1752144619802,0.3658,111030.0,111020.0,1.99744005]
[1752144621006,0.3658,111030.0,111020.0,2.29204005]
[1752144621610,0.3658,111030.0,111020.0,2.53336302]
[1752144621811,0.005,111030.0,111020.0,2.89416302]
[1752144622016,0.005,111030.0,111020.0,2.65284005]
[1752144623309,0.005,111030.0,111020.0,2.63875874]
[1752144623512,0.003,111030.0,111020.0,2.62929023]
[1752144623714,0.003,111030.0,111020.0,2.65382023]
[1752144623914,0.3628,111040.0,111030.0,0.1800866]
[1752144624115,0.3628,111040.0,111030.0,0.58629884]
[1752144624308,0.3628,111040.0,111030.0,0.82762181]
[1752144624914,0.3628,111040.0,111030.0,0.85115181]
[1752144625219,0.3648,111040.0,111030.0,0.85115181]
[1752144625420,0.60612297,111040.0,111030.0,0.85115181]
[1752144625610,0.3648,111040.0,111030.0,0.85115181]
[1752144629617,0.3648,111040.0,111030.0,1.09247478]
[1752144630319,0.3648,111040.0,111030.0,0.60982884]
[1752144630817,0.3648,111040.0,111030.0,1.09247478]
[1752144631407,0.3648,111040.0,111030.0,0.85115181]
[1752144632821,0.3648,111040.0,111030.0,0.60982884]
[1752144633022,0.3648,111040.0,111030.0,0.85115181]
[1752144633620,0.3648,111040.0,111030.0,0.85075181]
[1752144635522,0.3648,111040.0,111030.0,0.60942884]
[1752144635716,0.3648,111040.0,111030.0,0.85075181]
[1752144635922,0.60612297,111040.0,111030.0,0.85075181]
[1752144636122,1.02751634,111040.0,111030.0,0.50568884]
[1752144636421,1.12425242,111040.0,111030.0,1.12140884]
[1752144637011,0.88292945,111040.0,111030.0,1.12140884]
[1752144637212,0.88292945,111040.0,111030.0,0.50568884]
[1752144637421,1.12425242,111040.0,111030.0,1.12148884]
[1752144638010,1.12425242,111040.0,111030.0,1.12144522]
[1752144639824,0.88292945,111040.0,111030.0,1.36276819]
[1752144640021,0.88292945,111040.0,111030.0,1.06816819]
[1752144640422,1.12425242,111040.0,111030.0,1.06816819]
[1752144640923,0.88292945,111040.0,111030.0,1.06816819]
[1752144642324,0.88292945,111040.0,111030.0,1.09146819]
[1752144642524,0.64160648,111040.0,111030.0,1.09146819]
[1752144642923,0.88292945,111040.0,111030.0,1.09146819]
[1752144643624,1.24372945,111040.0,111030.0,1.09146819]
[1752144644126,1.24372945,111040.0,111030.0,1.06816819]
[1752144644325,1.24372945,111040.0,111030.0,1.09146819]
[1752144644526,1.24372945,111040.0,111030.0,1.12176819]
[1752144646032,1.24372945,111040.0,111030.0,0.88044522]
[1752144646228,1.24372945,111040.0,111030.0,1.13810819]
[1752144646426,1.06365905,111040.0,111030.0,1.13810819]
[1752144646729,1.03155905,111040.0,111030.0,1.13816551]
[1752144647028,1.03155905,111040.0,111030.0,1.16956551]
[1752144647619,1.21162945,111040.0,111030.0,1.12992551]
[1752144647824,1.03155905,111040.0,111030.0,1.15322551]
[1752144649525,1.21162945,111040.0,111030.0,1.15322551]
[1752144649731,1.21169007,111040.0,111030.0,1.15322551]
[1752144650230,1.03161967,111040.0,111030.0,1.15322551]
[1752144650730,1.21169007,111040.0,111030.0,1.15322551]
[1752144651228,1.03161967,111040.0,111030.0,1.15322551]
[1752144651429,0.7596967,111040.0,111030.0,1.15322551]
[1752144651622,1.00101967,111040.0,111030.0,1.15322551]
[1752144653835,1.00001967,111040.0,111030.0,1.15322551]
[1752144654029,1.00001967,111040.0,111030.0,1.15422551]
[1752144655035,0.99901967,111040.0,111030.0,1.15422551]
[1752144657031,0.7576967,111040.0,111030.0,1.15422551]
[1752144657236,0.99901967,111040.0,111030.0,1.15422551]
[1752144657634,0.99901967,111040.0,111030.0,0.91290254]
[1752144657830,0.99901967,111040.0,111030.0,0.92924254]
[1752144658034,0.7576967,111040.0,111030.0,1.17056551]
[1752144658340,0.99901967,111040.0,111030.0,1.17056551]
[1752144658530,0.7576967,111040.0,111030.0,1.17056551]
[1752144658737,0.99901967,111040.0,111030.0,1.17056551]
[1752144661138,0.7576967,111040.0,111030.0,1.17056551]
[1752144662043,0.99901967,111040.0,111030.0,1.13092551]
[1752144662230,0.7576967,111040.0,111030.0,1.15431551]
[1752144662740,0.7576967,111040.0,111030.0,1.15431549]
[1752144664039,0.7576967,111040.0,111030.0,0.91299252]
[1752144664234,0.7576967,111040.0,111030.0,1.17027549]
[1752144664836,0.99901967,111040.0,111030.0,1.17027549]
[1752144665639,0.99901967,111040.0,111030.0,1.15431549]
[1752144668842,0.7576967,111040.0,111030.0,1.15431549]
[1752144669445,0.99901967,111040.0,111030.0,1.15431549]
[1752144669943,0.63821967,111040.0,111030.0,1.15431549]
[1752144670849,0.27741967,111040.0,111030.0,1.15431549]
[1752144671042,0.63821967,111040.0,111030.0,1.15431549]
[1752144671449,0.3968967,111040.0,111030.0,1.15431549]
[1752144671651,0.63821967,111040.0,111030.0,1.15431549]
[1752144672349,0.6569699,111040.0,111030.0,1.15431549]
[1752144673144,0.41564693,111040.0,111030.0,1.15431549]
[1752144673350,0.6569699,111040.0,111030.0,1.15431549]
[1752144673953,0.41564693,111040.0,111030.0,1.15431549]
[1752144675045,0.41564693,111040.0,111030.0,1.39563846]
[1752144675445,0.41564693,111040.0,111030.0,1.69023846]
[1752144675649,0.41564693,111040.0,111030.0,1.44891549]
[1752144676250,0.41564693,111040.0,111030.0,1.69023846]
[1752144676951,0.41564693,111040.0,111030.0,1.44891549]
[1752144678655,0.41564693,111040.0,111030.0,1.69023812]
[1752144679253,0.41564693,111040.0,111030.0,1.44891515]
[1752144681653,0.41564693,111040.0,111030.0,1.69023812]
[1752144681856,0.41564693,111040.0,111030.0,1.44891515]
[1752144682150,0.41564693,111040.0,111030.0,1.69023812]
[1752144683054,0.41579078,111040.0,111030.0,1.69023812]
[1752144685862,0.38155023,111040.0,111030.0,1.69023812]
[1752144686055,0.38155023,111040.0,111030.0,1.79836996]
[1752144687159,0.38155023,111040.0,111030.0,1.80036996]
[1752144687554,0.38155023,111040.0,111030.0,1.69223812]
[1752144687859,0.38155023,111040.0,111030.0,1.80136996]
[1752144688051,0.38155023,111040.0,111030.0,0.94424699]
[1752144688252,0.38155023,111040.0,111030.0,1.57568699]
[1752144688758,0.38155023,111040.0,111030.0,1.81700996]
[1752144693160,0.38155023,111040.0,111030.0,1.81700905]
[1752144693561,0.38155023,111040.0,111030.0,1.77765905]
[1752144693764,0.38155023,111040.0,111030.0,1.80088905]
[1752144694264,0.02075023,111040.0,111030.0,1.80088905]
[1752144698969,0.02075023,111040.0,111030.0,1.80088867]
[1752144700260,0.02075023,111040.0,111030.0,2.16168867]
[1752144701562,0.02075023,111040.0,111030.0,2.15968867]
[1752144701771,0.02175023,111040.0,111030.0,2.16268867]
[1752144703266,0.02175023,111040.0,111030.0,2.14861513]
[1752144703473,0.02175023,111040.0,111030.0,2.16268818]
[1752144704872,0.02175023,111040.0,111030.0,2.05455634]
[1752144705174,0.02175023,111040.0,111030.0,2.05355634]
[1752144707571,0.02175023,111040.0,111030.0,2.16146656]
[1752144709665,0.02175023,111040.0,111030.0,2.05355634]
[1752144712469,0.02175023,111040.0,111030.0,2.05343634]
[1752144713180,0.02175023,111040.0,111030.0,2.1613711]
[1752144713481,0.02175023,111040.0,111030.0,2.05343634]
[1752144714783,0.02175023,111040.0,111030.0,2.16137617]
[1752144716287,0.02175023,111040.0,111030.0,2.16139072]
[1752144717478,0.02175023,111040.0,111030.0,2.18860114]
[1752144719588,0.02175023,111040.0,111030.0,2.16537114]
[1752144723896,0.02175023,111040.0,111030.0,1.6827252]
[1752144724098,0.02175023,111040.0,111030.0,2.16537114]
[1752144725197,0.02175023,111040.0,111030.0,2.16537104]
[1752144728893,0.02175023,111040.0,111030.0,2.03020624]
[1752144732003,0.02175023,111040.0,111030.0,2.16537104]
[1752144742809,0.02175023,111040.0,111030.0,1.80457104]
[1752144742999,0.02175023,111040.0,111030.0,2.16537104]
[1752144743204,0.02175023,111040.0,111030.0,2.03020624]
[1752144744714,0.02175023,111040.0,111030.0,2.03020617]
[1752144746310,0.02175023,111040.0,111030.0,2.03036307]
[1752144747410,0.02175023,111040.0,111030.0,2.13843837]
[1752144749108,0.02175023,111040.0,111030.0,2.16552787]
[1752144750612,0.02175023,111040.0,111030.0,2.15145499]
[1752144750812,0.02175023,111040.0,111030.0,2.16552786]
[1752144751013,0.02175023,111040.0,111030.0,2.03036306]
[1752144753816,0.02175023,111040.0,111030.0,2.16552786]
[1752144755213,0.02175023,111040.0,111030.0,3.41060786]
[1752144759911,0.02175023,111040.0,111030.0,3.27544306]
[1752144761113,0.02175023,111040.0,111030.0,2.79279712]
[1752144761313,0.02175023,111040.0,111030.0,3.27544306]
[1752144770018,0.02175023,111040.0,111030.0,3.4105262]
[1752144770218,0.02175023,111040.0,111030.0,3.27544306]
[1752144770722,0.02175023,111040.0,111030.0,3.51676603]
[1752144770918,0.02175023,111040.0,111030.0,3.27544306]
[1752144772528,0.02175023,111040.0,111030.0,3.41051178]
[1752144772727,0.02175023,111040.0,111030.0,4.91051178]
[1752144776830,0.02175023,111040.0,111030.0,4.77544306]
[1752144778830,0.02175023,111040.0,111030.0,4.91050354]
[1752144781523,0.02175023,111040.0,111030.0,4.9105029]
[1752144785044,0.02175023,111040.0,111030.0,4.77544242]
[1752144785536,0.02175023,111040.0,111030.0,4.96467315]
[1752144785943,0.02175023,111040.0,111030.0,4.91050246]
[1752144789155,0.02175023,111040.0,111030.0,4.77544242]
[1752144789550,0.02175023,111040.0,111030.0,4.91050354]
[1752144790150,0.02175023,111040.0,111030.0,4.77544242]
[1752144791653,0.02175023,111040.0,111030.0,4.96467315]
[1752144792348,0.02175023,111040.0,111030.0,4.77544242]
[1752144793247,0.02175023,111040.0,111030.0,4.96467315]
[1752144794654,0.02175023,111040.0,111030.0,4.98893315]
[1752144795559,0.02175023,111040.0,111030.0,3.48893315]
[1752144797453,0.02175023,111040.0,111030.0,3.62400861]
[1752144797653,0.02175023,111040.0,111030.0,3.43477788]
[1752144805668,0.02175023,111040.0,111030.0,3.43477785]
[1752144806869,0.02175023,111040.0,111030.0,3.07397785]
[1752144807061,0.02175023,111040.0,111030.0,3.43477785]
[1752144807261,0.02175023,111040.0,111030.0,3.29970239]
[1752144807662,0.02175023,111040.0,111030.0,3.43477785]
[1752144808068,0.02175023,111040.0,111030.0,2.95213191]
[1752144808370,0.02175023,111040.0,111030.0,3.43477785]
[1752144812264,0.02175023,111040.0,111030.0,3.67610082]
[1752144812465,0.02175023,111040.0,111030.0,3.54102536]
[1752144812666,0.02175023,111040.0,111030.0,3.73025609]
[1752144813261,0.002,111050.0,111040.0,0.1800704]
[1752144813565,0.05182291,111070.0,111060.0,0.66268384]
[1752144813771,0.08444793,111070.0,111060.0,2.31247604]
[1752144814069,0.05182291,111070.0,111060.0,2.45333156]
[1752144814268,0.05182291,111070.0,111060.0,2.37637604]
[1752144814571,0.05182291,111070.0,111060.0,2.48442944]
[1752144815372,0.05182291,111070.0,111060.0,2.37637392]
[1752144815876,0.02062291,111070.0,111060.0,2.61769689]
[1752144816270,0.02062291,111070.0,111060.0,2.73367993]
[1752144816868,0.01962291,111070.0,111060.0,2.49235696]
[1752144817168,0.01962291,111070.0,111060.0,2.8067261]
[1752144818472,0.001,111070.0,111060.0,2.8067261]
[1752144818673,0.001,111070.0,111060.0,3.1013261]
[1752144819472,0.001,111070.0,111060.0,2.99327058]
[1752144819671,0.001,111070.0,111060.0,3.12834993]
[1752144821574,0.002,111080.0,111070.0,0.1800217]
[1752144821874,0.001,111090.0,111080.0,0.1800055]
[1752144822069,0.001,111090.0,111080.0,3.91095794]
[1752144822476,0.001,111090.0,111080.0,3.83014449]
[1752144822677,0.001,111090.0,111080.0,3.93790179]
[1752144823479,0.001,111090.0,111080.0,3.83014449]
[1752144823670,0.001,111090.0,111080.0,3.79066449]
[1752144823875,0.001,111090.0,111080.0,3.81492449]
[1752144824574,0.002,111090.0,111080.0,3.81492449]
[1752144825475,0.002,111090.0,111080.0,3.89560162]
[1752144825978,0.002,111090.0,111080.0,3.92268179]
[1752144826474,0.002,111090.0,111080.0,4.21728179]
[1752144827679,0.002,111090.0,111080.0,4.10952449]
[1752144829384,0.002,111090.0,111080.0,4.19010901]
[1752144829982,0.002,111090.0,111080.0,4.21728179]
[1752144832286,0.002,111090.0,111080.0,4.10952449]
[1752144833292,0.002,111090.0,111080.0,4.19005623]
[1752144833686,0.002,111090.0,111080.0,4.16579623]
[1752144833886,0.002,111090.0,111080.0,4.18974623]
[1752144841901,0.002,111090.0,111080.0,4.22224623]
[1752144844303,0.002,111090.0,111080.0,4.14171449]
[1752144845406,0.002,111090.0,111080.0,4.24947179]
[1752144845606,0.002,111090.0,111080.0,4.24946772]
[1752144847106,0.002,111090.0,111080.0,4.24946756]
[1752144848309,0.002,111090.0,111080.0,4.14171026]
[1752144848506,0.002,111090.0,111080.0,4.24945067]
[1752144849909,0.002,111090.0,111080.0,4.24945095]
[1752144850107,0.001,111090.0,111080.0,4.24945095]
[1752144850311,0.001,111090.0,111080.0,4.25045095]
[1752144850702,0.001,111090.0,111080.0,4.25145095]
[1752144853411,0.001,111090.0,111080.0,4.27878989]
[1752144853610,0.001,111090.0,111080.0,4.25483989]
[1752144853808,0.001,111090.0,111080.0,4.27878989]
[1752144854209,0.001,111090.0,111080.0,3.91798989]
[1752144854414,0.001,111090.0,111080.0,4.27878989]
[1752144857216,0.001,111090.0,111080.0,3.91798989]
[1752144857417,0.001,111090.0,111080.0,4.27878989]
[1752144858719,0.001,111090.0,111080.0,4.27867678]
[1752144862120,0.001,111090.0,111080.0,4.25472678]
[1752144862814,0.001,111090.0,111080.0,3.89392678]
[1752144863022,0.001,111090.0,111080.0,4.25472678]
[1752144867524,0.001,111090.0,111080.0,4.11964743]
[1752144868923,0.001,111090.0,111080.0,4.30887816]
[1752144870221,0.001,111090.0,111080.0,4.44382774]
[1752144870520,0.001,111090.0,111080.0,4.44383634]
[1752144870715,0.001,111090.0,111080.0,4.25460561]
[1752144873626,0.001,111090.0,111080.0,5.75460561]
[1752144874826,0.001,111090.0,111080.0,5.39380561]
[1752144875128,0.001,111090.0,111080.0,5.75460561]
[1752144875816,0.001,111090.0,111080.0,5.61965603]
[1752144876223,0.001,111090.0,111080.0,5.25885603]
[1752144876425,0.001,111090.0,111080.0,5.61965603]
[1752144882334,0.001,111090.0,111080.0,5.60569441]
[1752144883941,0.001,111090.0,111080.0,5.74064399]
[1752144887136,0.001,111090.0,111080.0,5.13852102]
[1752144887430,0.60312297,111090.0,111080.0,2.85275144]
[1752144887631,0.60312297,111090.0,111080.0,2.96072755]
[1752144887830,0.66512297,111090.0,111080.0,2.34464755]
[1752144888133,0.66512297,111090.0,111080.0,2.92818755]
[1752144888134,0.4238,111090.0,111080.0,2.92818755]
[1752144889028,0.4238,111090.0,111080.0,2.92870755]
[1752144889230,0.66512297,111090.0,111080.0,2.92870755]
[1752144889423,0.4238,111090.0,111080.0,2.92870755]
[1752144890534,0.4238,111090.0,111080.0,2.82073144]
[1752144890731,0.4238,111090.0,111080.0,2.3380855]
[1752144890934,0.4238,111090.0,111080.0,2.82073144]
[1752144891235,0.001,111090.0,111080.0,2.87543052]
[1752144891436,0.001,111090.0,111080.0,2.69810755]
[1752144891731,0.001,111090.0,111080.0,2.21546161]
[1752144892036,0.001,111090.0,111080.0,2.69810755]
[1752144892333,0.001,111090.0,111080.0,2.21546161]
[1752144892533,0.001,111090.0,111080.0,2.04844755]
[1752144892725,0.0318,111090.0,111080.0,2.55695144]
[1752144893035,0.63392297,111090.0,111080.0,1.69914847]
[1752144893337,0.84586297,111090.0,111080.0,2.28464847]
[1752144893532,0.84586297,111090.0,111080.0,2.36556696]
[1752144893736,0.66582297,111090.0,111080.0,2.36556696]
[1752144894031,0.66582297,111090.0,111080.0,1.74916696]
[1752144894227,0.3926,111090.0,111080.0,2.60688993]
[1752144894635,0.3926,111090.0,111080.0,2.67008993]
[1752144894932,0.3926,111090.0,111080.0,2.66908993]
[1752144895535,0.3926,111090.0,111080.0,2.66808993]
[1752144896426,0.3618,111090.0,111080.0,2.66808993]
[1752144896830,0.3618,111090.0,111080.0,2.42712438]
[1752144897638,0.3618,111090.0,111080.0,2.454182]
[1752144898639,0.001,111090.0,111080.0,3.35026239]
[1752144899135,0.001,111090.0,111080.0,3.24228628]
[1752144899340,0.001,111090.0,111080.0,3.37723586]
[1752144900244,0.001,111090.0,111080.0,3.37823586]
[1752144903243,0.001,111090.0,111080.0,3.24328628]
[1752144908450,0.001,111090.0,111080.0,3.37823586]
[1752144909150,0.001,111090.0,111080.0,3.24328628]
[1752144909445,0.001,111090.0,111080.0,3.11040187]
[1752144909647,0.001,111090.0,111080.0,3.00260589]
[1752144909849,0.001,111090.0,111080.0,3.61916589]
[1752144910248,0.001,111090.0,111080.0,3.63323247]
[1752144913348,0.3618,111090.0,111080.0,1.87618806]
[1752144913549,0.001,111090.0,111080.0,2.93247286]
[1752144913746,0.001,111090.0,111080.0,3.07036884]
[1752144914053,0.001,111090.0,111080.0,2.21316845]
[1752144914252,0.001,111090.0,111080.0,2.83040845]
[1752144914959,0.001,111090.0,111080.0,1.97248806]
[1752144915257,0.001,111090.0,111080.0,2.83040845]
[1752144916153,0.001,111090.0,111080.0,2.46960845]
[1752144918053,0.001,111090.0,111080.0,2.76420845]
[1752144918756,0.3618,111090.0,111080.0,2.76420845]
[1752144919150,0.3919,111090.0,111080.0,2.73410845]
[1752144919352,0.3919,111090.0,111080.0,2.62631247]
[1752144919852,0.001,111090.0,111080.0,2.73410845]
[1752144920052,0.001,111090.0,111080.0,2.52492806]
[1752144920349,0.3929,111090.0,111080.0,2.73410845]
[1752144921056,0.3929,111090.0,111080.0,2.49342806]
[1752144921260,0.3929,111090.0,111080.0,2.73410845]
[1752144921446,0.4234,111090.0,111080.0,2.49342806]
[1752144921650,0.4234,111090.0,111080.0,2.73410845]
[1752144924655,0.0626,111090.0,111080.0,2.73410845]
[1752144925950,0.001,111090.0,111080.0,2.73410845]
[1752144926159,0.001,111090.0,111080.0,2.76690845]
[1752144929959,0.001,111090.0,111080.0,2.47230845]
[1752144940177,0.001,111090.0,111080.0,1.58818845]
[1752144942771,0.001,111090.0,111080.0,1.58818892]
[1752144943072,0.001,111090.0,111080.0,1.58718892]
[1752144943273,0.001,111090.0,111080.0,1.58918892]
[1752144943572,0.001,111090.0,111080.0,1.59018892]
[1752144945570,0.001,111090.0,111080.0,1.57612187]
[1752144945775,0.001,111090.0,111080.0,1.59018894]
[1752144947569,0.001,111090.0,111080.0,1.61734254]
[1752144949478,0.001,111090.0,111080.0,1.63999254]
[1752144951483,0.001,111090.0,111080.0,1.63999251]
[1752144952784,0.001,111090.0,111080.0,1.88065814]
[1752144953684,0.001,111090.0,111080.0,1.85800814]
[1752144953880,0.001,111090.0,111080.0,1.88065814]
[1752144954182,0.001,111090.0,111080.0,1.8665911]
[1752144954383,0.001,111090.0,111080.0,1.88065814]
[1752144960090,0.001,111090.0,111080.0,1.88065813]
[1752144960591,0.001,111090.0,111080.0,1.74570855]
[1752144964495,0.001,111090.0,111080.0,1.74430855]
[1752144965588,0.001,111090.0,111080.0,1.85227782]
[1752144967994,0.001,111090.0,111080.0,1.85227781]
[1752144969696,0.001,111090.0,111080.0,1.37093179]
[1752144969896,0.001,111090.0,111080.0,1.85227781]
[1752144970790,0.001,111090.0,111080.0,1.85227786]
[1752144973299,0.001,111090.0,111080.0,1.74430859]
[1752144973500,0.001,111090.0,111080.0,1.87925817]
[1752144977598,0.001,111090.0,111080.0,1.85228624]
[1752144979296,0.001,111090.0,111080.0,1.49148624]
[1752144979599,0.001,111090.0,111080.0,1.85222381]
[1752144980186,0.001,111090.0,111080.0,1.49142381]
[1752144980389,0.001,111090.0,111080.0,1.85222381]
[1752144982403,0.001,111090.0,111080.0,1.85222333]
[1752144983700,0.001,111090.0,111080.0,1.85382333]
[1752144983905,0.0338535,111090.0,111080.0,1.74584568]
[1752144984812,0.0338535,111090.0,111080.0,1.38504568]
[1752144985011,0.0338535,111090.0,111080.0,1.74584568]
[1752144987701,0.001,111090.0,111080.0,1.74584568]
[1752144990205,0.001,111090.0,111080.0,1.88079526]
[1752144990506,0.001,111090.0,111080.0,1.74584568]
[1752144991205,0.001,111090.0,111080.0,1.74584764]
[1752144991505,0.001,111090.0,111080.0,1.88079722]
[1752144992704,0.001,111090.0,111080.0,1.98652065]
[1752144993700,0.001,111090.0,111080.0,1.96227065]
[1752144993900,0.001,111090.0,111080.0,1.74584764]
[1752144994906,0.001,111090.0,111080.0,1.85380571]
[1752144995907,0.001,111090.0,111080.0,1.74584764]
[1752144996406,0.001,111090.0,111080.0,1.85380244]
[1752144996806,0.001,111090.0,111080.0,1.74584764]
[1752144998010,0.001,111090.0,111080.0,2.04044764]
[1752145001216,0.001,111090.0,111080.0,2.17539722]
[1752145001905,0.001,111090.0,111080.0,2.04044764]
[1752145002915,0.001,111090.0,111080.0,2.04041494]
[1752145003814,0.001,111090.0,111080.0,2.17536452]
[1752145007317,0.001,111090.0,111080.0,1.81456452]
[1752145007622,0.001,111090.0,111080.0,2.17536452]
[1752145008624,0.001,111090.0,111080.0,2.17545797]
[1752145011925,0.001,111090.0,111080.0,2.2811814]
[1752145013226,0.001,111090.0,111080.0,2.41613098]
[1752145013527,0.001,111090.0,111080.0,2.38912645]
[1752145013727,0.001,111090.0,111080.0,2.38943645]
[1752145014425,0.001,111090.0,111080.0,2.2814914]
[1752145014932,0.001,111090.0,111080.0,2.41644098]
[1752145020231,0.001,111090.0,111080.0,2.41644007]
[1752145023737,0.001,111090.0,111080.0,2.39188007]
[1752145023938,0.001,111090.0,111080.0,2.41644007]
[1752145026340,0.001,111090.0,111080.0,2.77724007]
[1752145028140,0.001,111090.0,111080.0,2.77723991]
[1752145030743,0.001,111090.0,111080.0,2.64229033]
[1752145031644,0.001,111090.0,111080.0,2.77723991]
[1752145033745,0.001,111090.0,111080.0,2.75267991]
[1752145033943,0.001,111090.0,111080.0,2.77723991]
[1752145034745,0.001,111090.0,111080.0,4.02179991]
[1752145035446,0.001,111090.0,111080.0,3.88685033]
[1752145036245,0.001,111090.0,111080.0,4.02179991]
[1752145037248,0.001,111090.0,111080.0,3.30019991]
[1752145037448,0.001,111090.0,111080.0,4.02179991]
[1752145043758,0.001,111090.0,111080.0,3.99723991]
[1752145043960,0.001,111090.0,111080.0,4.02037991]
[1752145049856,0.001,111090.0,111080.0,3.29877991]
[1752145050164,0.001,111090.0,111080.0,4.02037991]
[1752145053475,0.001,111090.0,111080.0,3.88543025]
[1752145053762,0.001,111090.0,111080.0,3.86229025]
[1752145053949,0.001,111090.0,111080.0,3.88543025]
[1752145055965,0.001,111090.0,111080.0,4.02037983]
[1752145057264,0.001,111090.0,111080.0,3.29877983]
[1752145057466,0.001,111090.0,111080.0,4.02037983]
[1752145058759,0.001,111090.0,111080.0,3.2983608]
[1752145058965,0.001,111090.0,111080.0,4.02037983]
[1752145062570,0.001,111090.0,111080.0,3.65957983]
[1752145062773,0.001,111090.0,111080.0,4.02037983]
[1752145065274,0.0332,111110.0,111100.0,0.1799555]
[1752145065474,0.0332,111110.0,111100.0,2.65374415]
[1752145065779,0.0332,111110.0,111100.0,2.71884415]
[1752145066169,0.05121,111120.0,111110.0,0.1799393]
[1752145066370,0.08549689,111120.0,111110.0,2.35242288]
[1752145066678,0.05261,111120.0,111110.0,2.37945494]
[1752145066878,0.02101,111120.0,111110.0,2.63235104]
[1752145067179,0.02101,111120.0,111110.0,2.66545104]
[1752145067373,0.02101,111120.0,111110.0,2.66544863]
[1752145067580,0.05388059,111120.0,111110.0,2.74627311]
[1752145068072,0.002,111120.0,111110.0,2.99555687]
[1752145068280,0.002,111120.0,111110.0,3.02263629]
[1752145068695,0.002,111120.0,111110.0,2.78196328]
[1752145070295,0.002,111120.0,111110.0,2.67405938]
[1752145070896,0.002,111120.0,111110.0,2.78196328]
[1752145071397,0.002,111120.0,111110.0,2.67405938]
[1752145072998,0.002,111120.0,111110.0,2.67505938]
[1752145073297,0.002,111120.0,111110.0,2.75567279]
[1752145073894,0.002,111120.0,111110.0,2.9813358]
[1752145074196,1e-07,111120.0,111110.0,2.98131681]
[1752145074385,0.01833852,111140.0,111130.0,0.1799069]
[1752145074587,0.01833852,111140.0,111130.0,3.9670628]
[1752145074796,0.01833852,111140.0,111130.0,4.0535328]
[1752145076494,0.01933852,111140.0,111130.0,4.0535328]
[1752145077098,0.01933852,111140.0,111130.0,4.1238019]
[1752145077294,0.01364045,111150.0,111140.0,0.1798908]
[1752145077495,0.01091589,111160.0,111150.0,0.1798746]
[1752145077695,0.01091589,111160.0,111150.0,1.11389393]
[1752145077899,0.01091589,111160.0,111150.0,0.73719448]
[1752145078105,0.01091589,111160.0,111150.0,1.13796393]
[1752145078290,0.01091589,111160.0,111150.0,1.2185405]
[1752145078490,0.01091589,111160.0,111150.0,1.13796393]
[1752145078801,0.01091589,111160.0,111150.0,1.13733073]
[1752145079403,0.01091589,111160.0,111150.0,1.13833073]
[1752145079904,0.01191589,111160.0,111150.0,1.13833073]
[1752145080602,0.01091589,111160.0,111150.0,1.13833073]
[1752145080802,0.01091589,111160.0,111150.0,1.43493073]
[1752145083903,0.01091589,111160.0,111150.0,1.41992073]
[1752145084805,0.01091589,111160.0,111150.0,1.05912073]
[1752145084997,0.01091589,111160.0,111150.0,1.41992073]
[1752145086598,0.01091589,111160.0,111150.0,1.40585742]